[Event "Baku Open 2024"]
[Site "Baku"]
[Date "2024.07.03"]
[Round "5.41"]
[White "Aarav Sinha"]
[Black "Ismayil, Malak"]
[Result "1/2-1/2"]
[ECO "C55"]
[WhiteElo "2300"]
[BlackElo "2165"]
[Annotator "RC"]
[PlyCount "165"]
[EventDate "2024.06.29"]
[EventType "swiss"]
[EventCountry "AZE"]
[SourceTitle "playchess.com"]
[Source "ChessBase"]
[SourceQuality "1"]
[TimeControl "5400+30"]

1. e4 {[%emt 0:00:02]} e5 {[%emt 0:06:09]} 2. Nf3 {[%emt 0:00:54]} Nc6 {[%emt 0:00:16]} 3. Bc4 {[%emt 0:00:08]} Nf6 {[%emt 0:00:26]} 4. d3 {[%emt 0:00:07]} Be7 {[%emt 0:00:04]} 5. O-O {[%emt 0:00:34]} O-O {[%emt 0:00:03]} 6. c3 {[%emt 0:00:29]} d5 {[%emt 0:00:29]} 7. exd5 {[%emt 0:00:38]} Nxd5 {[%emt 0:00:09]} 8. a4 {[%emt 0:00:25]} a5 {[%emt 0:00:03]} 9. Nbd2 {[%emt 0:00:16]} Bg4 {[%emt 0:08:43]} 10. h3 {[%emt 0:01:37]} Bh5 {[%emt 0:04:27]} 11. Ne4 {[%emt 0:00:34]} Kh8 {[%emt 0:01:32]} 12. Ng3 {[%emt 0:01:33]} Bg6 {[%emt 0:00:08]} 13. Re1 {[%emt 0:00:56]} Nb6 {[%emt 0:01:37]} 14. Bb5 {[%emt 0:01:00]} f6 {[%emt 0:00:58]} 15. d4 {[%emt 0:05:05]} Bd6 {[%emt 0:04:51]} 16. Bxc6 {[%emt 0:06:44]} bxc6 {[%emt 0:00:04]} 17. dxe5 {[%emt 0:01:08]} fxe5 {[%emt 0:00:11]} 18. Bg5 {[%emt 0:03:41]} Qe8 {[%emt 0:00:36]} 19. Nd2 {[%emt 0:17:07]} Rb8 {[%emt 0:11:22]} 20. Nge4 {[%emt 0:07:53]} Qf7 {[%emt 0:01:38]} 21. f3 {[%emt 0:04:14]} Bf5 {[%emt 0:07:08]} 22. b3 {[%emt 0:07:07]} Qg6 {[%emt 0:04:55]} 23. Kh1 {[%emt 0:01:03]} h6 {[%emt 0:01:13]} 24. Be3 {[%emt 0:00:40]} Nd5 {[%emt 0:01:41]} 25. c4 {[%emt 0:05:24]} Nb4 {[%emt 0:09:43]} 26. Rf1 {[%emt 0:00:46]} Rfd8 {[%emt 0:05:48]} 27. Qe2 {[%emt 0:03:15]} Nc2 {[%emt 0:07:02]} 28. Rac1 {[%emt 0:01:00]} Nd4 {[%emt 0:00:52]} 29. Bxd4 {[%emt 0:05:47]} exd4 {[%emt 0:00:06]} 30. Rcd1 {[%emt 0:01:29]} Bf4 {[%emt 0:01:12]} 31. Rfe1 {[%emt 0:07:03]} Re8 {[%emt 0:17:30]} 32. Qd3 {[%emt 0:01:34]} Bxd2 {[%emt 0:00:39]} 33. Rxd2 {[%emt 0:00:21]} Bxe4 {[%emt 0:00:03]} 34. fxe4 {[%emt 0:01:03]} c5 {[%emt 0:00:02]} 35. Rf2 {[%emt 0:01:18]} Re5 {[%emt 0:01:43]} 36. Rf4 {[%emt 0:05:10]} Rbe8 {[%emt 0:00:56]} 37. Qf3 {[%emt 0:01:10]} Kh7 {[%emt 0:00:55]} 38. Rg4 {[%emt 0:00:44]} Qe6 {[%emt 0:00:11]} 39. Rf4 {[%emt 0:01:23]} Re7 {[%emt 0:00:24]} 40. Qd3 {[%emt 0:00:40]} Qg6 {[%emt 0:00:54]} 41. Rg4 {[%emt 0:00:24]} Qe6 {[%emt 0:00:31]} 42. Qd2 {[%emt 0:02:18]} Qb6 {[%emt 0:00:08]} 43. Qd3 {[%emt 0:00:20]} Rf7 {[%emt 0:00:34]} 44. Qg3 {[%emt 0:00:55]} Qf6 {[%emt 0:00:56]} 45. h4 {[%emt 0:01:05]} h5 {[%emt 0:03:19]} 46. Rg5 {[%emt 0:00:25]} Rfe7 {[%emt 0:00:34]} 47. Rxe5 {[%emt 0:02:24]} Rxe5 {[%emt 0:00:23]} 48. Kg1 {[%emt 0:00:15]} Qe7 {[%emt 0:00:18]} 49. Qf4 {[%emt 0:01:48]} Qd6 {[%emt 0:00:40]} 50. Rd1 {[%emt 0:01:40]} Qe6 {[%emt 0:00:40]} 51. Re1 {[%emt 0:00:07]} Qd6 {[%emt 0:00:24]} 52. Rd1 {[%emt 0:00:08]} Re7 {[%emt 0:00:17]} 53. Qf3 {[%emt 0:00:16]} Qe5 {[%emt 0:00:38]} 54. Re1 {[%emt 0:00:15]} Kg6 {[%emt 0:00:30]} 55. Qd3 {[%emt 0:02:21]} Rf7 {[%emt 0:00:44]} 56. g3 {[%emt 0:00:09]} Re7 {[%emt 0:00:34]} 57. Kg2 {[%emt 0:00:13]} Kh7 {[%emt 0:00:28]} 58. Rf1 {[%emt 0:00:19]} g6 {[%emt 0:00:22]} 59. Re1 {[%emt 0:00:17]} Qd6 {[%emt 0:00:19]} 60. Rf1 {[%emt 0:00:17]} Kg7 {[%emt 0:00:25]} 61. Qf3 {[%emt 0:00:27]} Qe6 {[%emt 0:00:15]} 62. Re1 {[%emt 0:00:30]} Rf7 {[%emt 0:00:11]} 63. Qd3 {[%emt 0:00:05]} Qf6 {[%emt 0:00:05]} 64. Qe2 {[%emt 0:00:59]} d3 {[%emt 0:01:34]} 65. Qd2 {[%emt 0:02:28]} Qf3+ {[%emt 0:00:06]} 66. Kh3 {[%emt 0:00:22]} Re7 {[%emt 0:01:18]} 67. e5 {[%emt 0:00:36]} Kh7 {[%emt 0:00:31]} 68. Kh2 {[%emt 0:00:15]} Qf5 {[%emt 0:00:22]} 69. Qe3 {[%emt 0:00:15]} d2 {[%emt 0:00:33]} 70. Qxd2 {[%emt 0:00:13]} Rxe5 {[%emt 0:00:03]} 71. Rxe5 {[%emt 0:00:44]} Qxe5 {[%emt 0:00:00]} 72. Qd3 {[%emt 0:00:48]} Qb2+ {[%emt 0:00:28]} 73. Kh3 {[%emt 0:00:14]} Qa1 {[%emt 0:00:57]} 74. Kg2 {[%emt 0:00:28]} Qb2+ {[%emt 0:00:04]} 75. Kf3 {[%emt 0:00:11]} Qf6+ {[%emt 0:00:04]} 76. Kg2 {[%emt 0:00:26]} Qb2+ {[%emt 0:00:05]} 77. Kh3 {[%emt 0:00:04]} Qa1 {[%emt 0:00:23]} 78. Qf3 {[%emt 0:00:14]} Qe5 {[%emt 0:00:38]} 79. Qf7+ {[%emt 0:01:48]} Kh6 {[%emt 0:00:08]} 80. Qf8+ {[%emt 0:00:14]} Kh7 {[%emt 0:00:04]} 81. Qf7+ {[%emt 0:00:33]} Kh6 {[%emt 0:00:04]} 82. Qf8+ {[%emt 0:00:34]} Kh7 {[%emt 0:00:04]} 83. Qf7+ {[%emt 0:00:40]} 1/2-1/2

[Event "Baku Open 2024"]
[Site "Baku"]
[Date "2024.07.03"]
[Round "5.42"]
[White "Ravshanov, Sheralijon"]
[Black "Kurmangaliyeva, Liya"]
[Result "0-1"]
[ECO "D35"]
[WhiteElo "2072"]
[BlackElo "2282"]
[Annotator "TA"]
[PlyCount "105"]
[EventDate "2024.06.29"]
[EventType "swiss"]
[EventCountry "AZE"]
[SourceTitle "playchess.com"]
[Source "ChessBase"]
[SourceQuality "1"]
[TimeControl "5400+30"]

{[%evp 18,105,10,0,6,0,1,-4,35,28,41,33,57,29,45,27,29,0,0,-27,-19,-39,-37,-65,-49,-23,-38,-35,-34,-33,-16,-13,-8,-19,-6,-49,-6,0,-17,-38,-40,-33,-47,-47,-40,-37,-32,-57,-26,-22,0,0,0,0,24,34,41,0,0,0,0,-93,-81,-169,0,0,0,0,0,0,-26,-110,-85,-172,-169,-124,-137,-267,-250,-29975,-29976,-29975,-29975,-29977,-29978,-29986,-29987,-29989,-29990,-29990]} 1. d4 {[%emt 0:00:24]} Nf6 {[%emt 0:00:20]} 2. c4 {[%emt 0:00:30]} e6 {[%emt 0:00:18]} 3. Nc3 {[%emt 0:00:29]} d5 {[%emt 0:00:25]} 4. cxd5 {[%emt 0:00:33]} exd5 {[%emt 0:00:06]} 5. Bg5 {[%emt 0:00:30]} c6 {[%emt 0:03:18]} 6. e3 {[%emt 0:02:45]} Bd6 {[%emt 0:00:42]} 7. Bd3 {[%emt 0:00:46]} O-O {[%emt 0:02:31]} 8. Qc2 {[%emt 0:00:30]} h6 {[%emt 0:01:08]} 9. Bh4 {[%emt 0:00:30]} Re8 {[%emt 0:03:32]} 10. Nf3 {[%emt 0:01:42]} Be6 {[%emt 0:02:28]} 11. O-O {[%emt 0:08:52]} Nbd7 {[%emt 0:00:19][%cal Bb8d7,Bd7b6,Bb6c8,Bc8d6][%mdl 32] Wards off Ne5} 12. Bg3 {[%emt 0:10:56]} Bf8 {[%emt 0:09:12] The position is equal.} 13. h3 {[%emt 0:03:45]} Nb6 {[%emt 0:25:14]} 14. Ne5 {[%emt 0:01:12]} Nc8 {[%emt 0:02:47]} 15. f3 {[%emt 0:13:35]} Nd6 {[%emt 0:11:40]} 16. Rae1 {[%emt 0:01:45]} Rc8 {[%emt 0:02:04]} 17. Qb1 {[%emt 0:07:48]} c5 {[%emt 0:02:56]} 18. dxc5 {[%emt 0:02:44]} Rxc5 {[%emt 0:02:19]} 19. Ne2 {[%emt 0:02:37]} Nc4 {[%emt 0:02:19]} 20. Nxc4 {[%emt 0:10:00]} dxc4 {[%emt 0:00:05]} 21. Bc2 {[%emt 0:00:21][%cal Bd3c2,Bc2b1,Bb1a2][%mdl 32]} Qb6 {[%emt 0:03:11]} 22. Nd4 {[%emt 0:06:12] Dodges Rb5} Bd7 {[%emt 0:02:00]} 23. Bf2 {[%emt 0:06:03]} Rd5 {[%emt 0:05:02]} 24. Qc1 {[%emt 0:04:38]} Bc5 {[%emt 0:05:32]} 25. Bb1 {[%emt 0:00:46]} Rc8 {[%emt 0:02:09]} 26. a3 {[%emt 0:03:18]} Rg5 {[%emt 0:04:47]} 27. h4 {[%emt 0:00:29]} Rd5 {[%emt 0:00:18]} 28. Ba2 {[%emt 0:01:02]} Bxd4 {[%emt 0:00:40]} 29. exd4 {[%emt 0:00:05] White is weak on the light squares} Bf5 {[%emt 0:00:41] Hoping for ...Bd3.} 30. Re5 {[%emt 0:00:43]} Bd3 {[%emt 0:00:24]} 31. Rfe1 {[%emt 0:00:10][%cal Ob2b3]} Rdd8 {[%emt 0:02:06]} 32. Bb1 {[%emt 0:02:17]} Bxb1 {[%emt 0:02:21]} 33. Qxb1 {[%emt 0:00:04]} Nd5 {[%emt 0:00:07]} 34. Qf5 {[%emt 0:01:11]} Qc6 {[%emt 0:00:35]} 35. h5 {[%emt 0:00:44]} f6 {[%emt 0:01:50]} 36. Re6 {[%emt 0:00:56]} Qc7 {[%emt 0:00:43]} 37. Qg4 {[%emt 0:04:34]} Qf7 {[%emt 0:00:17]} 38. Bh4 {[%emt 0:01:01]} Re8 {[%emt 0:01:22]} 39. Qf5 {[%emt 0:00:55]} (39. Rd6 $11) 39... Rxe6 $17 {[%emt 0:00:24]} 40. Rxe6 {[%emt 0:00:05]} (40. Qxe6 $17 Qxe6 41. Rxe6) 40... Rd8 $2 {[%emt 0:00:20] [#]} ({Black should try} 40... Qd7 $19 {Strongly threatening ...Kf7.} 41. g4 Rd8) 41. Bg3 $11 {[%emt 0:01:19]} Ne7 {[%emt 0:00:54]} 42. Qe4 {[%emt 0:00:34][%csl LRb7,LRe7]} f5 {[%emt 0:00:22]} 43. Qe1 {[%emt 0:02:06]} (43. Qxb7 Qxe6 44. Be5 Qd7 $19) 43... Nc6 {[%emt 0:00:17]} 44. Bf2 {[%emt 0:00:22]} (44. Bd6 $1 $11 {keeps the balance.}) 44... Kh7 {[%emt 0:01:07]} ({Much weaker is} 44... Nxd4 $6 45. Re7 Qd5 (45... Qxh5 46. Qe5 $16) 46. Re5 $14) (44... Qxh5 $6 45. Qc3 $11) 45. g4 {[%emt 0:00:39]} (45. a4 $17 {is a better defense.}) 45... Nxd4 $19 {[%emt 0:01:07]} 46. Bxd4 {[%emt 0:00:16]} Rxd4 {[%emt 0:00:01][%mdl 4096] Endgame. KQR-KQR} 47. Re7 {[%emt 0:00:11]} (47. Qe3 $17) 47... Qd5 {[%emt 0:00:26] ...Rd1 is the strong threat.} 48. Rxg7+ $2 {[%emt 0:01:05] [#]} (48. Qe5 $19 Qxe5 (48... fxg4 49. Qxg7#) 49. Rxe5 fxg4 50. Rb5) 48... Kxg7 {[%emt 0:00:04] Black mates.} 49. Qe7+ {[%emt 0:00:03]} Qf7 {[%emt 0:00:25]} 50. Qe5+ {[%emt 0:00:06]} Qf6 {[%emt 0:00:03]} 51. Qc7+ {[%emt 0:00:03]} Kh8 {[%emt 0:00:39]} 52. Qb8+ {[%emt 0:00:04]} Rd8 {[%emt 0:00:07]} 53. Qxa7 {[%emt 0:00:21] Weighted Error Value: White=0.34/Black=0.14 (very precise) .  Missed win:     	---       	Black=1      Mistake:       	White=6     	---        Inaccurate:     	White=7     	Black=3      OK:         	White=10    	Black=14     Best:        	White=1     	Black=2} 0-1

[Event "Baku Open 2024"]
[Site "Baku"]
[Date "2024.07.03"]
[Round "5.43"]
[White "Suleimen, Ergali"]
[Black "Voinikonis, Nikita"]
[Result "1-0"]
[ECO "C42"]
[WhiteElo "2254"]
[BlackElo "2129"]
[Annotator "TA"]
[PlyCount "73"]
[EventDate "2024.06.29"]
[EventType "swiss"]
[EventCountry "AZE"]
[SourceTitle "playchess.com"]
[Source "ChessBase"]
[SourceQuality "1"]
[TimeControl "5400+30"]

{[%evp 17,73,0,6,6,2,0,21,0,0,0,0,0,39,27,45,45,53,29,51,58,73,76,79,75,74,77,78,50,40,58,70,74,62,60,113,108,97,91,130,112,120,126,123,134,116,124,216,172,204,205,415,395,492,495,1026,1031,998,985]} 1. e4 {[%emt 0:00:10]} e5 {[%emt 0:00:07]} 2. Nf3 {[%emt 0:00:26]} Nf6 {[%emt 0:00:09]} 3. Nxe5 {[%emt 0:00:50]} d6 {[%emt 0:00:09]} 4. Nf3 {[%emt 0:00:11]} Nxe4 {[%emt 0:00:06]} 5. Qe2 {[%emt 0:00:33]} Qe7 {[%emt 0:00:09]} 6. d3 {[%emt 0:00:51]} Nf6 {[%emt 0:00:08]} 7. Bg5 {[%emt 0:00:36]} Qxe2+ {[%emt 0:03:38]} 8. Bxe2 {[%emt 0:00:13]} Be7 {[%emt 0:00:07]} 9. Nc3 {[%emt 0:00:34]} h6 {[%emt 0:00:41]} 10. Bd2 {[%emt 0:02:44]} O-O {[%emt 0:00:51]} 11. O-O-O {[%emt 0:00:46]} Re8 {[%emt 0:00:40]} 12. h3 {[%emt 0:01:53] The position is equal.} Nc6 {[%emt 0:01:13]} 13. g4 {[%emt 0:13:59]} a6 {[%emt 0:05:28]} 14. Rdg1 {[%emt 0:01:11]} d5 {[%emt 0:06:25]} 15. Bd1 {[%emt 0:00:57]} Be6 {[%emt 0:03:42]} 16. Ne2 {[%emt 0:04:49]} Rad8 {[%emt 0:04:44]} 17. Rg2 {[%emt 0:05:24]} d4 {[%emt 0:04:55][%cal Oe6d5]} 18. a3 {[%emt 0:00:21]} Bd5 {[%emt 0:01:01]} 19. Nf4 $1 {[%emt 0:01:26]} Bd6 {[%emt 0:00:24]} 20. g5 {[%emt 0:06:06]} hxg5 {[%emt 0:01:00]} 21. Rxg5 {[%emt 0:03:44]} Re5 {[%emt 0:04:33]} 22. Rhg1 {[%emt 0:16:30]} Rxg5 {[%emt 0:00:42]} 23. Rxg5 {[%emt 0:00:04]} Be6 {[%emt 0:12:33]} 24. Nxe6 {[%emt 0:05:33]} fxe6 {[%emt 0:00:24]} 25. Rg1 {[%emt 0:00:44]} Nd5 {[%emt 0:06:29]} ({Black should play} 25... Re8 $14) 26. Ng5 $16 {[%emt 0:04:07]} Re8 {[%emt 0:00:12]} 27. Bf3 {[%emt 0:05:44][%cal Og5e6] [#] Threatens to win with Nxe6!} Ne5 {[%emt 0:05:06]} 28. Be4 {[%emt 0:01:33][%cal Og5e6] And now Nxe6! would win.} c6 {[%emt 0:00:06]} 29. f4 {[%emt 0:04:33][%cal Bf2f4,Bf4f5][%mdl 32]} (29. Bh7+ Kh8 $15) 29... Nd7 {[%emt 0:00:55]} 30. Bh7+ {[%emt 0:00:18]} Kf8 {[%emt 0:00:30]} 31. f5 $36 {[%emt 0:00:34][%mdl 2048] Keeping Black busy.} Nc7 {[%emt 0:08:10]} (31... Ke7 $16 {was worth a try.} 32. fxe6 (32. Nxe6 Be5 $16) 32... Nc5) 32. Bg6 {[%emt 0:02:11]} Re7 {[%emt 0:00:49]} 33. Ne4 {[%emt 0:02:18] Inhibits Nf6.} Bc5 {[%emt 0:01:27] [#]} (33... Be5 34. Bb4 Bh2) 34. Bg5 $18 {[%emt 0:00:42]} e5 {[%emt 0:01:02]} 35. f6 {[%emt 0:03:26] White is clearly winning.} (35. Bxe7+ Bxe7 36. h4 Nd5 $16) 35... gxf6 {[%emt 0:00:30]} (35... Nxf6 $142 36. Nxc5 Ncd5) 36. Bh6+ {[%emt 0:00:33] A strong pair of Bishops.} ({Less strong is} 36. Nxf6 Nxf6 37. Bxf6 Re6 $14) 36... Kg8 {[%emt 0:00:20]} 37. Bf5+ {[%emt 0:00:05] Weighted Error Value: White=0.06 (flawless) /Black=0.27 (precise) .  Mistake:       	---       	Black=4      Inaccurate:     	White=1     	Black=2      OK:         	White=10    	Black=7      Best:        	White=2     	Black=2      Strong:       	White=1     	---} 1-0

[Event "Baku Open 2024"]
[Site "Baku"]
[Date "2024.07.03"]
[Round "5.44"]
[White "Bashirli, Saadat"]
[Black "Allahverdiyeva, Ayan"]
[Result "1/2-1/2"]
[ECO "B22"]
[WhiteElo "1926"]
[BlackElo "2133"]
[Annotator "NA RC"]
[PlyCount "148"]
[EventDate "2024.06.29"]
[EventType "swiss"]
[EventCountry "AZE"]
[SourceTitle "playchess.com"]
[Source "ChessBase"]
[SourceQuality "1"]
[TimeControl "5400+30"]

1. e4 {[%emt 0:00:03]} c5 {[%emt 0:01:38]} 2. c3 {[%emt 0:00:11]} d5 {[%emt 0:04:59]} 3. exd5 {[%emt 0:00:10]} Qxd5 {[%emt 0:00:22]} 4. d4 {[%emt 0:00:24]} Nf6 {[%emt 0:00:52]} 5. Nf3 {[%emt 0:00:12]} e6 {[%emt 0:00:14]} 6. Na3 {[%emt 0:01:21]} a6 {[%emt 0:01:05]} 7. Nc2 {[%emt 0:01:21]} Nc6 {[%emt 0:08:08]} 8. Be2 {[%emt 0:01:33]} Be7 {[%emt 0:01:45]} 9. O-O {[%emt 0:01:23]} O-O {[%emt 0:00:25]} 10. Bf4 {[%emt 0:06:48]} Rd8 {[%emt 0:11:12]} 11. Bc7 {[%emt 0:10:57]} Re8 {[%emt 0:03:39]} 12. Bb6 {[%emt 0:03:43]} cxd4 {[%emt 0:02:05]} 13. cxd4 {[%emt 0:02:26]} Bd8 {[%emt 0:04:48]} 14. Ne3 {[%emt 0:06:08]} Qe4 {[%emt 0:02:14]} 15. Nc4 {[%emt 0:15:08]} Bxb6 {[%emt 0:02:35]} 16. Nxb6 {[%emt 0:00:28]} Rb8 {[%emt 0:00:02]} 17. Re1 {[%emt 0:01:13]} Qf4 {[%emt 0:02:45]} 18. Rc1 {[%emt 0:06:52]} Rd8 {[%emt 0:05:20]} 19. Qb3 {[%emt 0:01:29]} Qd6 {[%emt 0:26:49]} 20. Nc4 {[%emt 0:04:45]} Qe7 {[%emt 0:05:09]} 21. Red1 {[%emt 0:01:21]} Bd7 {[%emt 0:00:37]} 22. Nce5 {[%emt 0:04:30]} Be8 {[%emt 0:00:26]} 23. h3 {[%emt 0:01:52]} Nd5 {[%emt 0:02:01]} 24. Bf1 {[%emt 0:05:03]} f6 {[%emt 0:03:43]} 25. Nd3 {[%emt 0:02:15]} b6 {[%emt 0:00:01]} 26. Re1 {[%emt 0:03:01]} Qd6 {[%emt 0:01:50]} 27. Qd1 {[%emt 0:05:32]} Nde7 {[%emt 0:02:07]} 28. b3 {[%emt 0:07:54]} Bf7 {[%emt 0:00:33]} 29. Nb2 {[%emt 0:03:27]} b5 {[%emt 0:00:02]} 30. Bd3 {[%emt 0:01:02]} Nxd4 {[%emt 0:00:52]} 31. Nxd4 {[%emt 0:00:32]} Qxd4 {[%emt 0:00:02]} 32. Qe2 {[%emt 0:00:25]} Nd5 {[%emt 0:01:06]} 33. Bb1 {[%emt 0:01:41]} Nc3 {[%emt 0:01:52]} 34. Bxh7+ {[%emt 0:00:52]} Kxh7 {[%emt 0:00:49]} 35. Qc2+ {[%emt 0:00:03]} Bg6 {[%emt 0:00:26]} 36. Qxc3 {[%emt 0:00:09]} Qxc3 {[%emt 0:05:57]} 37. Rxc3 {[%emt 0:02:46]} Rd2 {[%emt 0:00:00]} 38. Nd1 {[%emt 0:00:00]} Rbd8 {[%emt 0:00:00]} 39. Rc1 {[%emt 0:00:00]} Rxa2 {[%emt 0:00:00]} 40. Rxe6 {[%emt 0:00:00]} Bc2 {[%emt 0:00:16]} 41. Nc3 {[%emt 0:00:00]} Bxb3 {[%emt 0:00:18]} 42. Re3 {[%emt 0:01:16]} Rc2 {[%emt 0:00:36]} 43. Ra1 {[%emt 0:00:46]} Rc8 {[%emt 0:00:46]} 44. Nxb5 {[%emt 0:00:28]} Rc1+ {[%emt 0:00:11]} 45. Rxc1 {[%emt 0:00:05]} Rxc1+ {[%emt 0:02:23]} 46. Kh2 {[%emt 0:00:30]} Bc4 {[%emt 0:00:26]} 47. Na3 {[%emt 0:00:01]} Bf1 {[%emt 0:00:00]} 48. Kg3 {[%emt 0:00:34]} a5 {[%emt 0:00:11]} 49. Kh2 {[%emt 0:01:16]} Rd1 {[%emt 0:00:17]} 50. Re4 {[%emt 0:00:47]} Rd5 {[%emt 0:00:54]} 51. Ra4 {[%emt 0:00:38]} Be2 {[%emt 0:00:03]} 52. Nb1 {[%emt 0:00:33]} Bd1 {[%emt 0:00:28]} 53. Ra3 {[%emt 0:00:19]} Bc2 {[%emt 0:01:02]} 54. Nc3 {[%emt 0:00:02]} Rd3 {[%emt 0:00:14]} 55. Nb5 {[%emt 0:00:48]} Bb3 {[%emt 0:00:49]} 56. Nd4 {[%emt 0:00:47]} a4 {[%emt 0:00:12]} 57. Nxb3 {[%emt 0:00:19]} axb3 {[%emt 0:00:04]} 58. Ra5 {[%emt 0:00:18]} g5 {[%emt 0:00:47]} 59. Rb5 {[%emt 0:00:31]} Kg6 {[%emt 0:00:02]} 60. g3 {[%emt 0:00:41]} f5 {[%emt 0:01:29]} 61. Rb6+ {[%emt 0:00:33]} Kh5 {[%emt 0:00:15]} 62. Kg2 {[%emt 0:00:25]} Rc3 {[%emt 0:00:13]} 63. Kh2 {[%emt 0:00:34]} Rd3 {[%emt 0:01:01]} 64. Kg2 {[%emt 0:00:06]} g4 {[%emt 0:00:05]} 65. h4 {[%emt 0:01:09]} Rf3 {[%emt 0:00:06]} 66. Kg1 {[%emt 0:00:24]} f4 {[%emt 0:00:35]} 67. Rb5+ {[%emt 0:00:30]} Kg6 {[%emt 0:00:02]} 68. gxf4 {[%emt 0:00:21]} Kf6 {[%emt 0:00:05]} 69. Kg2 {[%emt 0:00:26]} Ke6 {[%emt 0:00:05]} 70. h5 {[%emt 0:00:22]} Kf6 {[%emt 0:01:10]} 71. h6 {[%emt 0:00:29]} Rh3 {[%emt 0:00:04]} 72. h7 {[%emt 0:00:18]} Rxh7 {[%emt 0:00:59]} 73. Rxb3 {[%emt 0:00:05]} Kf5 {[%emt 0:00:02]} 74. f3 {[%emt 0:00:39]} gxf3+ {[%emt 0:00:44]} 1/2-1/2

[Event "Baku Open 2024"]
[Site "Baku"]
[Date "2024.07.04"]
[Round "6.1"]
[White "Pranav Vijay"]
[Black "Movahed, Sina"]
[Result "0-1"]
[ECO "B45"]
[WhiteElo "2252"]
[BlackElo "2482"]
[Annotator "TA"]
[PlyCount "82"]
[EventDate "2024.06.29"]
[EventType "swiss"]
[EventCountry "AZE"]
[SourceTitle "playchess.com"]
[Source "ChessBase"]
[SourceQuality "1"]
[TimeControl "5400+30"]

{[%evp 11,82,0,2,0,4,-4,0,0,8,-13,0,0,7,0,10,0,0,0,26,32,47,-41,0,0,0,0,0,0,0,0,10,4,22,15,24,17,0,0,0,-16,72,72,53,9,9,9,38,0,0,0,0,0,0,-60,-62,-101,-117,-195,-193,-187,-179,-357,-309,-912,-907,-1074,-1056,-2166,-1995,-6714,-6893,-5779,-2910]} 1. e4 {[%emt 0:05:52]} c5 {[%emt 0:00:09]} 2. Nf3 {[%emt 0:00:17]} e6 {[%emt 0:00:09]} 3. d4 {[%emt 0:00:25]} cxd4 {[%emt 0:00:08]} 4. Nxd4 {[%emt 0:00:06]} Nf6 {[%emt 0:00:06]} 5. Nc3 {[%emt 0:00:21]} Nc6 {[%emt 0:00:08]} 6. a3 {[%emt 0:01:17]} Be7 {[%emt 0:00:15]} 7. Nxc6 {[%emt 0:01:41]} bxc6 {[%emt 0:00:11]} 8. e5 {[%emt 0:00:20]} Nd5 {[%emt 0:00:02]} 9. Qg4 {[%emt 0:00:10] The position is equal.} g6 {[%emt 0:00:13]} 10. Bd2 {[%emt 0:04:31]} Rb8 {[%emt 0:05:19]} 11. Na4 {[%emt 0:05:32]} f5 {[%emt 0:03:31]} 12. Qd4 {[%emt 0:17:18]} O-O {[%emt 0:13:28]} 13. c4 {[%emt 0:13:44]} Nb6 {[%emt 0:01:18]} 14. Ba5 {[%emt 0:00:19] [#] aiming for c5.} Qe8 {[%emt 0:01:05]} 15. Nc5 {[%emt 0:06:57]} ({Don't play} 15. Bxb6 axb6 16. Be2 (16. Nxb6 $2 {is the wrong capture.} c5 $19) 16... c5 $15) 15... Qf7 {[%emt 0:08:08][%cal Od7d6]} 16. Nd3 {[%emt 0:07:16]} (16. Be2 $14) 16... Qg7 {[%emt 0:04:09]} 17. Bb4 {[%emt 0:09:38] Prevents d6.} d5 $1 {[%emt 0:04:15]} 18. Bxe7 {[%emt 0:01:08]} Qxe7 {[%emt 0:00:03]} 19. c5 {[%emt 0:00:07]} Nd7 {[%emt 0:00:36][%cal Of5f4]} 20. b4 {[%emt 0:01:11]} Ba6 {[%emt 0:04:18]} 21. Nf4 {[%emt 0:02:48]} Bxf1 {[%emt 0:00:53]} 22. Kxf1 {[%emt 0:00:07]} g5 {[%emt 0:02:05]} 23. Nd3 {[%emt 0:00:06]} f4 {[%emt 0:01:10]} 24. h4 {[%emt 0:07:41]} Rf5 {[%emt 0:01:05]} 25. Re1 {[%emt 0:01:00]} Rbf8 {[%emt 0:01:26]} (25... Nf8 $11) 26. hxg5 $16 {[%emt 0:00:51]} Qxg5 {[%emt 0:04:39]} 27. f3 {[%emt 0:00:21]} Rb8 {[%emt 0:03:20]} 28. Rh3 {[%emt 0:01:45]} (28. Kf2 {is interesting.} h5 29. Rh3 Kf7 30. Kg1) 28... Kh8 {[%emt 0:05:09]} (28... h5 {with more complications.} 29. Kf2 Kf7 30. Kg1 Nf8) 29. Re2 {[%emt 0:03:49]} Nf8 {[%emt 0:02:42]} 30. Ke1 {[%emt 0:02:47]} Ng6 {[%emt 0:01:21]} 31. Kd1 {[%emt 0:00:03]} Rf7 {[%emt 0:01:31][%cal Oa7a5]} 32. Kc2 {[%emt 0:01:57] [#]} (32. Rb2 $11) 32... a5 $1 $15 {[%emt 0:00:38]} 33. Rh1 {[%emt 0:02:30]} (33. bxa5 Ra7) 33... Ne7 {[%emt 0:01:01] Threatens to win with ...Nf5.} 34. Kc3 {[%emt 0:02:54]} (34. Kd2 $17) 34... axb4+ $19 {[%emt 0:01:54]} 35. axb4 {[%emt 0:00:02]} Ra8 {[%emt 0:00:48] Prevents Ra2. Hoping for ...Qg8.} 36. Rb1 $2 {[%emt 0:01:04]} (36. Rd2 {was necessary.}) 36... Nf5 {[%emt 0:00:13]} 37. Qf2 $2 {[%emt 0:00:02]} (37. Qxf4 Qxf4 38. Nxf4) 37... d4+ {[%emt 0:01:02] Black is clearly winning.} 38. Kb2 {[%emt 0:00:57]} Rfa7 {[%emt 0:00:14]} 39. Kc1 {[%emt 0:00:22]} Ra3 {[%emt 0:00:17]} 40. Rd2 {[%emt 0:00:11]} Ne3 {[%emt 0:00:11] ( -> ...Qg6)} 41. Rbb2 {[%emt 0:00:41]} Qf5 {[%emt 0:00:44] Weighted Error Value: White=0.70/Black=0.10 (very precise) .  Mistake:       	White=5     	Black=1      Inaccurate:     	White=3     	Black=3      OK:         	White=12    	Black=14     Best:        	White=1     	---        Strong:       	---       	Black=1} 0-1